Cogmind - Beta 11.1 @@@ ROGUE MODE // 2022.12.03 @ 14:53:39 Player: ILikeMonsters1890 Result: Destroyed by H-55 Commando with Assault Rifle Performance ------------- Evolutions (3) 1500 Regions Visited (8) 1600 Robots Destroyed (122) 610 Value Destroyed (2472) 2472 Prototype IDs (30) 600 Alien Tech Used (0) 0 Bonus (22) 22 TOTAL SCORE: 6804 Bonus ------- High Alert Combat Kills 83 Follower Combat Kills 50 Aligned with FarCom 300 Friendly Fire -411 Cogmind --------- Core Integrity 0/700 Matter 223/300 Energy 42/100 System Corruption 7% Temperature Cool (0) Movement Core (400) Ox7 Location -7/Factory Parts ------- > --- POWER (1) -------- (None) > --- PROPULSION (4) --- (None) > --- UTILITY (5) ------ Large Storage Unit Improved Signal Interpreter > --- WEAPON (3) ------- Minigun > --- INVENTORY (15) --- Light Nuclear Core Enhanced Nuclear Core Improved Heat Sink Medium Storage Unit Improved Sensor Array Seismic Detector Hardened Light Armor Plating Hardened Light Armor Plating Hardened Light Armor Plating Field Lobotomy Kit (5) Peak State ------------ > --- POWER ------------ Nuclear Core > --- PROPULSION ------- Armored Wheel Armored Wheel Armored Huge Wheel > --- UTILITY ---------- Large Storage Unit Improved Signal Interpreter Actuator Array Hardened Heavy Armor Plating > --- WEAPON ----------- Improved Grenade Launcher Heavy Mace Heavy Mace > --- INVENTORY -------- Light Nuclear Core Enhanced Nuclear Core Armored Wheel Armored Wheel Improved Heat Sink Medium Storage Unit Improved Sensor Array Seismic Detector Hardened Light Armor Plating Hardened Light Armor Plating Hardened Light Armor Plating Minigun Gauss Cannon Field Lobotomy Kit [Rating: 43] Favorites ----------- Power Light Ion Engine Engine Light Ion Engine Power Core Nuclear Core Propulsion Wheel Treads Medium Treads Leg Improved Aluminum Leg Wheel Wheel Flight Unit Flight Unit Utility Signal Interpreter Device Structural Scanner Storage Medium Storage Unit Processor Signal Interpreter Hackware Hacking Suite Protection Hardened Light Armor Plating Weapon Heavy Mace Energy Gun Medium Laser Ballistic Gun Assault Rifle Ballistic Cannon Gauss Cannon Launcher Rocket Launcher Impact Weapon Heavy Mace Slashing Weapon Katana Build | -11 -10 -10 -9 -9 -9 -8 -8 -7 ------- Run | Scr Mat Min Mat Min Exi Min Mat Fac Slots Evolved 6 | . . . 2 . . . 2 2 Power . | . . . . . . . . . Propulsion 2 | . . . 1 . . . . 1 Utility 3 | . . . 1 . . . 2 . Weapon 1 | . . . . . . . . 1 Parts Attached 111 | 5 7 6 9 17 . 6 33 28 Power 12 | . 1 1 2 3 . . 3 2 Engine 9 | . 1 1 2 3 . . 2 . Core 3 | . . . . . . . 1 2 Reactor . | . . . . . . . . . Propulsion 37 | 3 1 1 4 6 . . 8 14 Treads 1 | . . . . . . . . 1 Leg 9 | . . . . . . . 7 2 Wheel 25 | 3 1 1 4 4 . . 1 11 Hover . | . . . . . . . . . Flight 2 | . . . . 2 . . . . Utility 28 | 1 1 . 2 3 . . 13 8 Device 6 | 1 . . 1 . . . 3 1 Storage 6 | . 1 . . 3 . . . 2 Processor 3 | . . . 1 . . . 1 1 Hackware 1 | . . . . . . . 1 . Protection 12 | . . . . . . . 8 4 Artifact . | . . . . . . . . . Weapon 34 | 1 4 4 1 5 . 6 9 4 Energy Gun 3 | . 2 1 . . . . . . Energy Cannon . | . . . . . . . . . Ballistic Gun 5 | 1 . 1 . 1 . . . 2 Ballistic Cannon 1 | . . . . . . . . 1 Launcher 10 | . 1 2 . 2 . 3 1 1 Special Weapon . | . . . . . . . . . Impact Weapon 13 | . 1 . 1 2 . 3 6 . Slashing Weapon 2 | . . . . . . . 2 . Piercing Weapon . | . . . . . . . . . Special Melee Weapon . | . . . . . . . . . Unidentified Prototypes 1 | . . . . . . . . 1 Corrupted Parts 2 | . . . 1 1 . . . . System Corruption 14 | . . . 7 7 . . . . Parts Lost 34 | . . 2 6 5 . . 9 12 Power 4 | . . 1 1 1 . . . 1 Propulsion 16 | . . 1 4 3 . . 3 5 Utility 8 | . . . 1 . . . 5 2 Weapon 6 | . . . . 1 . . 1 4 Highest Loss Streak 6 | . . 2 2 4 . . 4 6 To Critical Strikes . | . . . . . . . . . Average Slot Usage (%) 92 | . 100 99 91 90 100 100 96 84 Engine 7 | . 14 13 11 9 11 11 8 . Core 2 | . . . . . . . . 6 Leg 8 | . . . . . . . 22 13 Wheel 17 | . 28 27 25 18 33 33 3 10 Device 9 | . 14 14 10 11 11 11 6 9 Storage 9 | . 14 14 11 11 11 11 9 7 Processor 8 | . . . 11 11 11 11 9 7 Protection 6 | . . . . . . . 16 10 Energy Gun 1 | . 17 7 . . . . . . Ballistic Gun 1 | . 4 6 2 . . . . . Impact Weapon 16 | . 6 14 19 21 22 21 16 14 Naked Turns . | . . . . . . . . . Heaviest Build 109 | 13 18 18 20 20 20 22 35 109 Greatest Support 52 | 26 20 20 30 30 30 30 39 52 Greatest Overweight (x) 5 | . . . 1 5 . . 3 3 Average Overweight (x) . | . . . . . . . . . Largest Inventory Capacity 25 | 8 10 10 10 10 10 10 10 25 Average Capacity 11 | 8 9 10 10 9 10 10 10 15 Most Carried 17 | 6 10 10 10 10 10 10 10 17 Average Carried 9 | 3 8 9 8 7 9 9 9 12 Final Capacity 15 | 8 10 10 10 10 10 10 10 15 Final Carried 10 | 5 10 9 8 10 10 10 9 10 Class Distribution -------------------- 54% | Scavenger-Mutant 45% | Mutant Dominant Class ---------------- Mutant | -10/Materials Mutant | -10/Mines Scavenger-Mutant | -9/Materials Scavenger-Mutant | -9/Mines Scavenger-Mutant | -9/Exiles Scavenger-Mutant | -8/Mines Scavenger-Mutant | -8/Materials Mutant | -7/Factory Resources | -11 -10 -10 -9 -9 -9 -8 -8 -7 ----------- Run | Scr Mat Min Mat Min Exi Min Mat Fac Matter Collected 1674 | 298 111 114 75 211 . 161 416 288 Remotely . | . . . . . . . . . Salvage Created 3748 | 248 233 344 664 275 . 305 1034 645 Parts 153 | 17 23 10 27 10 . 10 38 18 Haulers Intercepted 3 | . . . 1 . . . 2 . Recyclers Shooed 6 | 1 . 1 2 . . . 1 1 Parts Field Recycled . | . . . . . . . . . Retrieved Matter . | . . . . . . . . . Parts Self-Destructed . | . . . . . . . . . Prevented . | . . . . . . . . . Kills | -11 -10 -10 -9 -9 -9 -8 -8 -7 ------- Run | Scr Mat Min Mat Min Exi Min Mat Fac Combat Hostiles Destroyed 64 | . 7 13 10 7 . 6 14 7 Melee 22 | . . 4 5 3 . . 8 2 Guns 4 | . 4 . . . . . . . Cannons 1 | . . . . . . . . 1 AOE 23 | . 3 8 . 3 . 6 3 . Classes Destroyed 14 | 3 3 . 3 . . 1 2 2 Worker 19 | 2 1 3 . 2 . . 7 4 Builder 1 | . . . . . . . . 1 Tunneler 10 | 6 . 1 . 2 . . 1 . Hauler 3 | . . . 1 . . . 2 . Recycler 15 | 1 1 1 2 2 . 1 3 4 Mechanic 1 | . . . 1 . . . . . Operator 1 | . . . . . . . 1 . Watcher 6 | . 2 . 1 . . . 3 . Swarmer 23 | . 6 9 . 6 . . 2 . Grunt 28 | . 1 4 6 1 . 6 8 2 Brawler 2 | . . . . . . 2 . . Duelist 1 | . . . . . . . 1 . Sentry 9 | . . . 4 . . . 3 2 Programmer 3 | . . . . . . . . 3 Best Kill Streak 6 | 4 6 6 4 3 . 3 4 3 Combat Bots Only 5 | . 3 5 3 3 . 3 3 2 Max Kills in Single Turn 3 | 1 2 3 1 2 . 3 3 1 Gunslinging . | . . . . . . . . . Exploded 3 | . 2 3 . 2 . 2 1 . Melee 1 | . . 1 1 1 . . 1 1 Uniques/NPCs Destroyed . | . . . . . . . . . Combat | -11 -10 -10 -9 -9 -9 -8 -8 -7 -------- Run | Scr Mat Min Mat Min Exi Min Mat Fac Damage Taken 5867 | . 179 423 619 286 . 68 1136 3156 Core 1325 | . 38 148 205 80 . 14 135 705 Absorbed by Shields . | . . . . . . . . . Core Remaining (%) 56 | 100 . 25 . . . 25 75 . Volleys Fired 77 | 16 18 6 . 3 . 8 7 19 Largest 2 | 2 2 1 . 1 . 1 1 2 Hottest 90 | 70 90 33 . 33 . 33 30 73 Shots Fired 114 | 32 33 6 . 3 . 8 7 25 Gun 83 | 32 31 . . 1 . . . 19 Cannon 6 | . . . . . . . . 6 Launcher 25 | . 2 6 . 2 . 8 7 . Special . | . . . . . . . . . Kinetic 49 | 16 7 . . 1 . . . 25 Thermal 40 | 16 24 . . . . . . . Explosive 25 | . 2 6 . 2 . 8 7 . Electromagnetic . | . . . . . . . . . Robot Hit Streak 10 | 10 3 7 . 1 . 3 6 9 Robot Miss Streak 6 | 1 6 1 . 2 . 1 1 2 Penetration Max . | . . . . . . . . . Secondary Targets . | . . . . . . . . . Shots Hit Robots 257 | 20 16 26 48 20 . 7 57 63 Core Hits 95 | 10 13 11 6 6 . 15 21 13 Critical Kills 5 | . . . 1 . . . 3 1 Critical Parts Destroyed 28 | . . 7 5 1 . . 7 8 Critical Strikes 40 | 3 1 7 6 1 . . 12 10 Burn 4 | 3 1 . . . . . . . Blast 1 | . . . . . . . . 1 Smash 34 | . . 7 6 1 . . 11 9 Sever 1 | . . . . . . . 1 . Melee Attacks 266 | . 2 30 58 37 . 1 78 60 Impact 263 | . 2 30 58 37 . 1 75 60 Slashing 3 | . . . . . . . 3 . Piercing . | . . . . . . . . . Sneak Attacks 44 | . . 6 8 6 . 1 16 7 Combat Hostiles 2 | . . . 1 . . . . 1 Follow-up Attacks 25 | . . . 8 . . . 8 9 Damage Inflicted 11019 | 261 434 1348 1543 1032 . 757 3210 2434 Guns 669 | 261 174 . . 15 . . . 219 Cannons 148 | . . . . . . . . 148 Explosions 2473 | . 210 589 . 185 . 681 808 . Melee 7729 | . 50 759 1543 832 . 76 2402 2067 Ramming . | . . . . . . . . . Kinetic 510 | 88 40 . . 15 . . . 367 Thermal 307 | 173 134 . . . . . . . Explosive 2473 | . 210 589 . 185 . 681 808 . Electromagnetic . | . . . . . . . . . Impact 7658 | . 50 759 1543 832 . 76 2331 2067 Slashing 71 | . . . . . . . 71 . Piercing . | . . . . . . . . . Highest Corruption 14 | . . . 7 14 14 14 . 7 Average Corruption 8 | . . . 7 11 14 14 . 2 Corruption Purged . | . . . . . . . . . Corruption Blocked . | . . . . . . . . . Effects 70 | . . . 2 29 16 16 . 7 Message Errors 22 | . . . 1 13 1 4 . 3 Matter Fused 13 | . . . . 5 2 5 . 1 Heat Flow Errors 9 | . . . 1 4 2 2 . . Energy Discharges 9 | . . . . 2 6 . . 1 Data Loss (minor) 12 | . . . . 2 5 3 . 2 Data Loss (major) 3 | . . . . 1 . 2 . . Alerts 1 | . . . . 1 . . . . Misdirections 1 | . . . . 1 . . . . Overload Shots . | . . . . . . . . . Overflow Damage 2440 | . 10 395 288 262 . 36 836 613 Projectiles . | . . . . . . . . . Explosions 103 | . . 39 . 5 . . 59 . Melee 2337 | . 10 356 288 257 . 36 777 613 Knockbacks 27 | . . 4 2 6 . 1 8 6 Impact 26 | . . 3 2 6 . 1 8 6 Kinetic . | . . . . . . . . . Secondary 1 | . . 1 . . . . . . Self-Inflicted Damage 406 | . 22 76 . 43 . 21 244 . Shots 10 | . 2 3 . 1 . 1 3 . Rammed . | . . . . . . . . . Targets Rammed . | . . . . . . . . . Kicked . | . . . . . . . . . Crushed . | . . . . . . . . . Highest Temperature 235 | 27 142 . 171 235 153 203 13 16 Average Temperature 42 | 10 38 . 80 99 76 84 6 4 Received Heat Transfer 915 | . 12 42 201 36 . 27 342 255 Siege Activations . | . . . . . . . . . Robots Corrupted . | . . . . . . . . . Combat Hostiles . | . . . . . . . . . Parts Fried 64 | . 2 8 12 5 . 1 22 14 Impact Corruptions 95 | . 1 14 15 15 . 2 27 21 Robots Melted . | . . . . . . . . . Combat Hostiles . | . . . . . . . . . Parts Melted 2 | 2 . . . . . . . . Heat Transferred 1173 | 740 433 . . . . . . . Parts Sabotaged . | . . . . . . . . . Parts Stolen . | . . . . . . . . . Parts Stripped . | . . . . . . . . . Power Chain Reactions . | . . . . . . . . . Missiles Intercepted . | . . . . . . . . . Alert | -11 -10 -10 -9 -9 -9 -8 -8 -7 ------- Run | Scr Mat Min Mat Min Exi Min Mat Fac Peak Influence 482 | 45 284 438 428 223 . 165 482 239 Initial 215 | . 29 67 119 43 . . . 215 Average 168 | 25 146 248 226 131 . 130 304 87 Maximum Alert Level 2 | . 1 2 2 1 . . 2 1 Low Security (%) 62 | 100 84 51 50 71 . 100 20 75 Level 1 30 | . 15 40 41 28 . . 51 24 Level 2 7 | . . 8 8 . . . 28 . Level 3 . | . . . . . . . . . Level 4 . | . . . . . . . . . Level 5 . | . . . . . . . . . High Security . | . . . . . . . . . Max Security . | . . . . . . . . . Squads Dispatched 8 | . 1 . 1 . . . 3 3 Investigation 1 | . . . 1 . . . . . Extermination 3 | . . . . . . . . 3 Reinforcement 1 | . 1 . . . . . . . Assault . | . . . . . . . . . Garrison 3 | . . . . . . . 3 . Intercept . | . . . . . . . . . Searches Triggered . | . . . . . . . . . Construction Impeded . | . . . . . . . . . Haulers Reinforced . | . . . . . . . . . Active Scanning Responses . | . . . . . . . . . Cargo Convoy Interrupts 1 | . . . . . . . . 1 Stealth | -11 -10 -10 -9 -9 -9 -8 -8 -7 --------- Run | Scr Mat Min Mat Min Exi Min Mat Fac Distress Signals 5 | . 1 . 1 . . . 2 1 Communications Jammed . | . . . . . . . . . Distress Signals . | . . . . . . . . . Times Spotted 110 | . 14 13 12 11 . 5 32 23 Peak Tracking Total 13 | . 5 5 2 4 . 3 5 13 Tactical Retreats 11 | . 1 . . 1 . . 8 1 Traps | -11 -10 -10 -9 -9 -9 -8 -8 -7 ------- Run | Scr Mat Min Mat Min Exi Min Mat Fac Traps Triggered 4 | . . . 1 . . . 1 2 Indirectly . | . . . . . . . . . Trap Hack Attempts . | . . . . . . . . . Triggered . | . . . . . . . . . Disarmed . | . . . . . . . . . Reprogrammed 6 | . . . . . . . 6 . Reused 5 | . . . . . . . 5 . Traps Extracted . | . . . . . . . . . Installed . | . . . . . . . . . Triggered 5 | . . . . . . . 5 . Machines | -11 -10 -10 -9 -9 -9 -8 -8 -7 ---------- Run | Scr Mat Min Mat Min Exi Min Mat Fac Machines Disabled 7 | . . 1 1 1 . . 4 . Max in Single Turn 2 | . . 1 1 . . . 2 . Machines Sabotaged . | . . . . . . . . . Garrisons Compromised . | . . . . . . . . . Overloaded Fab Kills . | . . . . . . . . . Hacking | -11 -10 -10 -9 -9 -9 -8 -8 -7 --------- Run | Scr Mat Min Mat Min Exi Min Mat Fac Machines Accessed 18 | . 4 1 2 . 3 . 5 3 Terminals 10 | . 3 1 1 . . . 4 1 Fabricators 2 | . . . . . . . . 2 Repair Stations . | . . . . . . . . . Recycling Units 3 | . 1 . 1 . . . 1 . Scanalyzers . | . . . . . . . . . Garrison Access . | . . . . . . . . . Total Hacks 62 | . 20 4 4 . 9 . 19 6 Successful 32 | . 11 . 2 . 9 . 9 1 Failed 30 | . 9 4 2 . . . 10 5 Catastrophic 2 | . . . 1 . . . 1 . Database Lockouts . | . . . . . . . . . Manual 26 | . 9 4 2 . 1 . 9 1 Terminals 43 | . 18 4 2 . . . 17 2 Fabricators 4 | . . . . . . . . 4 Repair Stations . | . . . . . . . . . Recycling Units 6 | . 2 . 2 . . . 2 . Scanalyzers . | . . . . . . . . . Garrison Access . | . . . . . . . . . Terminal Hacks 23 | . 6 . 2 . 9 . 5 1 Record 8 | . . . . . 8 . . . Prototype ID Bank 2 | . . . . . . . 1 1 Branch Access Points 1 | . 1 . . . . . . . Alert Level 1 | . . . . . . . 1 . Unreport Threat 2 | . 1 . 1 . . . . . Locate Traps 3 | . 2 . . . . . 1 . Reprogram Traps 1 | . . . . . . . 1 . Hauler Manifests 1 | . 1 . . . . . . . Registered Components 1 | . 1 . . . . . . . Zone Layout 2 | . . . 1 . . . 1 . EX-Prototype ID Bank 1 | . . . . . 1 . . . Fabricator Hacks . | . . . . . . . . . Repair Station Hacks . | . . . . . . . . . Recycling Unit Hacks 1 | . 1 . . . . . . . Retrieve Components 1 | . 1 . . . . . . . Scanalyzer . | . . . . . . . . . Garrison Access Hacks . | . . . . . . . . . Unauthorized Hacks 8 | . 4 . . . . . 4 . Terminals 7 | . 3 . . . . . 4 . Assimilate 1 | . . . . . . . 1 . Botnet 4 | . 2 . . . . . 2 . Detonate 1 | . 1 . . . . . . . Operators 1 | . . . . . . . 1 . Fabricators . | . . . . . . . . . Repair Stations . | . . . . . . . . . Recycling Units 1 | . 1 . . . . . . . Mask 1 | . 1 . . . . . . . Scanalyzers . | . . . . . . . . . Garrison Access . | . . . . . . . . . Data Cores Recovered . | . . . . . . . . . Used . | . . . . . . . . . Hacking Detections 15 | . 4 1 2 . . . 5 3 Full Trace Events . | . . . . . . . . . Feedback Events . | . . . . . . . . . Feedback Blocked . | . . . . . . . . . Robot Schematics Acquired . | . . . . . . . . . Robots Built . | . . . . . . . . . Authchips . | . . . . . . . . . Time . | . . . . . . . . . Total Robot Build Rating . | . . . . . . . . . Part Schematics Acquired . | . . . . . . . . . Parts Built . | . . . . . . . . . Authchips . | . . . . . . . . . Time . | . . . . . . . . . Total Part Build Rating . | . . . . . . . . . Parts Repaired . | . . . . . . . . . Time . | . . . . . . . . . Parts Recycled . | . . . . . . . . . Recycled Matter . | . . . . . . . . . Retrieved Matter . | . . . . . . . . . Retrieved Components 3 | . 3 . . . . . . . Parts Scanalyzed . | . . . . . . . . . Part Schematics Acquired . | . . . . . . . . . Parts Damaged . | . . . . . . . . . Bothacking | -11 -10 -10 -9 -9 -9 -8 -8 -7 ------------ Run | Scr Mat Min Mat Min Exi Min Mat Fac Used RIF Installer . | . . . . . . . . . Robots Hacked . | . . . . . . . . . Non-combat . | . . . . . . . . . Combat . | . . . . . . . . . Robot Hacks Applied . | . . . . . . . . . Relay Couplers Released . | . . . . . . . . . Fabnet Peak Effective % . | . . . . . . . . . Robots Rewired . | . . . . . . . . . Allies Hacked . | . . . . . . . . . Hacks Repelled . | . . . . . . . . . Allies | -11 -10 -10 -9 -9 -9 -8 -8 -7 -------- Run | Scr Mat Min Mat Min Exi Min Mat Fac Total Allies 4 | . . . . 3 . . 1 . Largest Group 3 | . . . . 3 3 3 1 . Highest-Rated Group 40 | . . . . 40 40 39 10 . Highest-Rated Ally 16 | . . . . 16 16 16 10 . Total Orders . | . . . . . . . . . Ally Attacks 30 | . . . . 21 . 9 . . Total Damage 377 | . . . . 263 . 114 . . Kills 4 | . . . . 4 . . . . Allies Corrupted 1 | . . . . . . 1 . . Allies Melted . | . . . . . . . . . Intel | -11 -10 -10 -9 -9 -9 -8 -8 -7 ------- Run | Scr Mat Min Mat Min Exi Min Mat Fac Robot Analysis Total . | . . . . . . . . . Derelict Logs Recovered 3 | . . 1 . 2 . . . . Drone Launches . | . . . . . . . . . Drone Recoveries . | . . . . . . . . . Exploration | -11 -10 -10 -9 -9 -9 -8 -8 -7 ------------- Run | Scr Mat Min Mat Min Exi Min Mat Fac Turns Passed 5800 | 214 317 450 480 787 362 410 1128 1652 Spaces Moved 4077 | 75 280 410 318 626 409 341 645 973 Core 1 | . . . . 1 . . . . Treads . | . . . . . . . . . Legs 754 | . . . . . . . 535 219 Wheels 3191 | 75 280 410 318 494 409 341 110 754 Hover . | . . . . . . . . . Flight 131 | . . . . 131 . . . . Fastest Speed 80 | 80 80 80 80 80 80 80 80 86 Average Speed 95 | 81 80 80 83 91 80 80 113 115 Slowest Speed 360 | 90 80 80 95 360 80 80 190 145 Overloaded Moves . | . . . . . . . . . Propulsion Burnouts . | . . . . . . . . . Robots Hopped . | . . . . . . . . . Cave-ins Triggered . | . . . . . . . . . Exploration Rate (%) 44 | 4 36 42 24 95 70 54 57 19 Regions Visited 8 Branch Regions 4 Pre-discovered Areas 2 | . . . . 1 1 . . . Known Exits Taken 7 | . 1 1 1 1 1 1 1 . Unknown Exits Taken 1 | 1 . . . . . . . . Scrap Searched 2 | . . . . . . 2 . . Spaces Dug 20 | . . . . . . 13 5 2 Terrain Destroyed 267 | . 6 56 . 19 . 79 104 3 Melee 7 | . . . . . . . 5 2 Projectile 1 | . . . . . . . . 1 AOE 259 | . 6 56 . 19 . 79 99 . Terrain Rammed . | . . . . . . . . . Walls Destroyed . | . . . . . . . . . Machines Disabled . | . . . . . . . . . Actions | -11 -10 -10 -9 -9 -9 -8 -8 -7 --------- Run | Scr Mat Min Mat Min Exi Min Mat Fac Total 5454 | 197 338 473 444 773 445 467 909 1408 Wait 753 | 88 7 17 52 80 31 104 107 267 Move 4069 | 74 279 409 317 625 408 340 644 973 Hop . | . . . . . . . . . Pick Up 128 | 7 15 3 11 12 3 4 32 41 Fast Attach . | . . . . . . . . . Attach 40 | 1 . 2 7 6 . . 11 13 Detach 1 | . . . . . . . . 1 Swap 71 | 4 7 4 2 11 . 6 22 15 Drop 90 | 7 10 2 5 4 3 4 21 34 Fire 77 | 16 18 6 . 3 . 8 7 19 Melee 225 | . 2 30 50 32 . 1 65 45 Ram . | . . . . . . . . . Kick . | . . . . . . . . . Crush . | . . . . . . . . . Escape Stasis . | . . . . . . . . . Rewire . | . . . . . . . . . Trap . | . . . . . . . . . Miscellaneous . | . . . . . . . . . Route ------- -11/Scrapyard -10/Materials (discovered 2 exits: *Mat / *Min) -10/Mines -9/Materials (discovered 2 exits: *Min x2) -9/Mines (discovered 3 exits: *Mat x2 / *Exi) -9/Exiles (discovered 2 exits: *Min x2) -8/Mines -8/Materials -7/Factory (discovered 1 exit: *Fac) History --------- Turn | Location | Event 17 | -11/Scrapyard | Discovered new exit (range 3) 215 | -11/Scrapyard | Entered Materials 312 | -10/Materials | Build established: Mutant 409 | -10/Materials | Discovered new exit (range 16) 462 | -10/Materials | Discovered new exit (range 9) 479 | -10/Materials | Identified exit to Mines 532 | -10/Materials | Entered Mines 576 | -10/Mines | Identified exit to Materials 670 | -10/Mines | Received a Rocket Launcher from a helpful Derelict 762 | -10/Mines | Core integrity fell below 50% 982 | -10/Mines | Entered Materials 982 | -9/Materials | Evolved 2 slots: Propulsion x1, Utility x1 1085 | -9/Materials | Build established: Scavenger-Mutant 1342 | -9/Materials | Core integrity fell below 50% 1385 | -9/Materials | Discovered new exit (range 12) 1443 | -9/Materials | Discovered new exit (range 8) 1461 | -9/Materials | Identified exit to Mines 1462 | -9/Materials | Entered Mines 1576 | -9/Mines | Discovered new exit (range 7) 1581 | -9/Mines | Identified exit to Materials 1616 | -9/Mines | Learned location of Storage (-9) 1663 | -9/Mines | Lost 4 parts (1p2n1w) 1730 | -9/Mines | Excavation squad dispatched 1730 | -9/Mines | A large section of the Mines collapsed 1731 | -9/Mines | System corruption reached 10% 1823 | -9/Mines | Assisted by bots powering up and referring to "LRC-V3" 2208 | -9/Mines | Deemed a non-threat by the Exiles lab entrance 2208 | -9/Mines | Discovered new exit (range 5) 2211 | -9/Mines | Identified exit to Exiles 2249 | -9/Mines | Entered Exiles 2249 | -9/Exiles | Accompanied by 3 allies 2262 | -9/Exiles | Discovered new exit (range 14) 2272 | -9/Exiles | Identified exit to Mines 2287 | -9/Exiles | Met 8R-AWN 2300 | -9/Exiles | Met EX-HEX 2330 | -9/Exiles | Met EX-DEC 2347 | -9/Exiles | Learned location of Zion (-7) 2370 | -9/Exiles | Discovered exit to Mines (range 14) 2416 | -9/Exiles | Met EX-BIN 2428 | -9/Exiles | Aligned with FarCom system 2429 | -9/Exiles | Given EX-Vault access code 2447 | -9/Exiles | Opened EX-Vault 2455 | -9/Exiles | Found Trap Reconfigurator 2461 | -9/Exiles | Found Field Lobotomy Kit 2479 | -9/Exiles | Warned to stay clear of 0b10 Research branches 2611 | -9/Exiles | Left Exiles lab with Field Lobotomy Kit 2611 | -9/Exiles | Entered Mines 2611 | -8/Mines | Accompanied by 3 allies 3014 | -8/Mines | Discovered exit to Materials (range 9) 3021 | -8/Mines | Entered Materials 3021 | -8/Materials | Evolved 2 slots: Utility x2 3173 | -8/Materials | Garrison activated, responded to threat 3212 | -8/Materials | Lost 4 parts (2n2u) 3599 | -8/Materials | Build established: Mutant 3907 | -8/Materials | Build established: Scavenger-Mutant 4021 | -8/Materials | Lost 3 parts (1n1u1w) 4038 | -8/Materials | Discovered new exit (range 17) 4057 | -8/Materials | Identified exit to Factory 4149 | -8/Materials | Entered Factory 4149 | -7/Factory | Evolved 2 slots: Propulsion x1, Weapon x1 4692 | -7/Factory | Discovered new exit (range 7) 4699 | -7/Factory | Identified exit to Factory 4917 | -7/Factory | Build established: Mutant 5706 | -7/Factory | Cargo convoy interrupted 5765 | -7/Factory | Lost 6 parts (3n1u2w) 5775 | -7/Factory | Core integrity fell below 50% 5797 | -7/Factory | Core integrity fell below 20% 5801 | -7/Factory | Destroyed by H-55 Commando with Assault Rifle Last Messages --------------- 05782_ P-60 Hacker resets P-60 Hacker, system corruption cleaned. 05783_ Slug penetrates M-28 Smith. 05783_ Penetrated by Slug. 05785_ P-60 Hacker Imp. Heat Sink blasted off. 05785_ P-60 Hacker destroyed. 05786_ Slug penetrates Construction Platform. 05789_ Penetrated by Slug. 05792_ Slug penetrates Construction Platform. 05792_ Penetrated by Slug. 05793_ Slug penetrates Construction Platform. 05794_ Gauss Cannon destroyed. 05795_ Slug penetrates Construction Platform. 05796_ Slug penetrates H-55 Commando. 05796_ K-01 Serf collects debris. 05798_ Slug penetrates Construction Platform. 05799_ Construction Platform collapses. 05799_ Penetrated by Slug. 05800_ K-01 Serf collects debris. 05801_ Penetrated by Slug. 05801_ Actuator Array destroyed. Map ----- +----------------------------------------------------+ | ?????????????????????????????????????????# | | ???????????????????????? ####+#####?????# == | | ???????????????????????? #?????# = | | ????????????????????????? #?????# | | ????????????????????????? #?????# "" | | ?????????????????????????? #?????# "" | | ?????????????????????????? #?????# """ | | ??????????????????????????? #?????# """ | | ??????????????????????????? #?????# """ | | ??????????????????########## #?????# | | ??????????????????# # #############+# | | ??????????????????# #% | | ??????????????????# # | | ??????????????????# %+% | | ??????????????????# u# % | | ??????????????????# u# % | | ??????????????????# # % | | ??????????????????# ] # | | ??????????????????# ###"#" ##############+# | | ??????????????????# "" ###### #????# | | ??????????????????# """"h# # #????# """" """ | | ??????????????????# p """"%# # #????# """" """ | | ??????????????????# """"%#! # #????# """" """ | | ??????????????????# """ h; # ###??# """" """ | | ??????????????????# """|!# # #### """" """ | | ??????????????????# h" @%#* + + """" """ | | ??????????????????#! xh k # # #### """" """ | | ????????????###??## i x # # #??# w | | ???????????##"#####%############# ####! | | ???????????# ! ###???# ## | | ???????????#! #?????# ! ! ## | | ???????????# " " #?????# ########+### | | ???????????# "Y" #?????# #??????# #?? | | ???????????# """ #?????# #??????# #?? | | ???????????# #?????## p "" "" #??????# ### | | ################+######### "" "" #??????# | | """ """ ########+## | | """ """ ## ! # | | """ """ ## # | | #### ## # | | #??# ## # | | #??# ########### | | #??# ! #??# # | | #??# ########## ###??# * # | | ########+####### #????????# #????# + | | ??# # #????????# #????# !! ! # | | ??# """"""" # ####????????# #????# ! # | | ??# """"""" # #???######### ##???# # | | ??# """"""" # #???# [ # #???######## | | ??# """"""" # #???# # ########???# | +----------------------------------------------------+ Best States ------------- Heat Dissipation 48 Energy Generation 17 Energy Capacity 300 Matter Stores 300 Matter Capacity 300 Sight Range 18 Terrain Scan Density 10 Armor Coverage 600 Weapon Shielding 66 Evasion (%) 55 Offensive Hacking 10 Item Schematics ----------------- None Robot Schematics ------------------ None Fabricated ------------ Nothing Alien Tech Used ----------------- None Achievements -------------- None Challenges ------------ None Game ------ Seed SmartbombGuidedStabilizer Manual? 0 Play Time 01:04:17 Cumulative 98.5 hours Start 2022.11.21 @ 15:24:36 End 2022.12.03 @ 14:53:39 Sessions 3 Manual Loads 0 Difficulty Rogue Special Mode None Game No. 101 Rogue 101 Adventurer 0 Explorer 0 Win Type - Total 0 Types 0/0/0/0/0/0/0/0/0 Lore% 61 Gallery% 50 Achievement% 44 Wizard Run 0 Options --------- ASCII 0 Keyboard 0 Movement Numpad Keybinds 0 Fullscreen 2 Font 18/SmallcapsGlow Map View 76x50 Tactical HUD 1 Map Filters NONE Filters NONE Steam 1 RUN: 72d05d24-ae3b-4d8b-b621-918df9156a14